fUST/lending_fUST_20250612
["ID","MTS","AMOUNT","RATE_DAILY","PERIOD"]
[365516446,1749733845075,-164419.48,0.000236,7]
[365516447,1749733845085,-733.75,0.000236,7]
[365516448,1749733845095,-2200.0,0.00023609,2]
[365516449,1749733845104,-151.0,0.00023638,7]
[365516450,1749733845114,-460.501958,0.00023658,7]
[365516451,1749733845123,-460.501958,0.00023658,7]
[365516452,1749733845136,-861.93091,0.00023658,7]
[365516453,1749733845146,-861.93091,0.00023658,7]
[365516454,1749733845158,-973.80289166,0.00023659,9]
[365516455,1749733845168,-229.7508257,0.00023677,2]
[365516456,1749733845178,-460.501958,0.00023687,7]
[365516457,1749733845187,-460.501953,0.00023687,7]
[365516459,1749733845196,-861.93091,0.00023687,7]
[365516460,1749733845208,-861.930916,0.00023687,7]
[365516461,1749733845218,-424.26423502,0.00023695,2]
[365516463,1749733845228,-160.0,0.00023695,2]
[365516465,1749733845237,-835.15920933,0.00023695,2]
[365516466,1749733845246,-151.0,0.000237,9]
[365516468,1749733845256,-207.0,0.0002372,2]
[365516470,1749733845265,-603.05998381,0.00023759,2]
[365516471,1749733845275,-1209.63440237,0.00023768,2]
[365516472,1749733845285,-498.09655676,0.00023768,2]
[365516473,1749733845295,-973.80289166,0.00023797,9]
[365516474,1749733845304,-2000.0,0.000238,2]
[365516475,1749733845314,-2000.0,0.000238,2]
[365516476,1749733845324,-2000.0,0.000238,2]
[365516477,1749733845333,-151.0,0.000238,8]
[365516478,1749733845342,-2000.0,0.000238,2]
[365516479,1749733845352,-11564.39928506,0.00023809,3]
[365516480,1749733845361,-12500.0,0.00023809,3]
[365516481,1749733845371,-151.0,0.00023818,7]
[365516482,1749733845381,-160.0,0.00023834,2]
[365516483,1749733845390,-460.0,0.00023835,2]
[365516484,1749733845403,-1484.78,0.00023835,4]
[365516485,1749733845413,-460.0,0.00023835,4]
[365516486,1749733845423,-595.1,0.00023835,4]
[365516487,1749733845432,-729.18,0.00023835,4]
[365516488,1749733845442,-776.23,0.00023835,4]
[365516489,1749733845451,-926.1,0.00023835,4]
[365516490,1749733845461,-460.0,0.00023835,4]
[365516491,1749733845470,-460.0,0.00023835,4]
[365516492,1749733845480,-460.0,0.00023835,4]
[365516493,1749733845489,-481.39,0.00023835,4]
[365516494,1749733845499,-475.75,0.00023835,4]
[365516495,1749733845509,-1963.39,0.00023835,4]
[365516496,1749733845519,-754.66,0.00023835,4]
[365516497,1749733845528,-1242.65,0.00023835,4]
[365516498,1749733845538,-1017.57,0.00023835,4]
[365516499,1749733845547,-537.33,0.00023835,4]
[365516500,1749733845557,-500.0,0.00023873,2]
[365516501,1749733845566,-3833.18,0.000239,7]
[365516502,1749733845576,-20089.85471331,0.000239,2]
[365516503,1749733845586,-842.5625,0.000239,3]
[365516504,1749733845596,-15000.0,0.000239,2]
[365516505,1749733845605,-7617.88473637,0.000239,2]
[365516506,1749733845615,-160.0,0.00023918,3]
[365516507,1749733845629,-160.0,0.00023918,5]
[365516508,1749733845638,-5132.07328471,0.00023928,2]
[365516509,1749733845648,-5000.0,0.00023928,2]
[365516510,1749733845660,-5000.0,0.00023928,2]
[365516511,1749733845669,-5000.0,0.00023928,2]
[365516512,1749733845679,-5000.0,0.00023928,2]
[365516513,1749733845688,-500.0,0.0002393,2]
[365516514,1749733845698,-500.0,0.0002393,2]
[365516515,1749733845707,-500.0,0.0002393,2]
[365516516,1749733845717,-510.94916478,0.0002393,2]
[365516517,1749733845727,-500.0,0.0002393,2]
[365516518,1749733845737,-500.0,0.0002393,2]
[365516519,1749733845746,-500.0,0.0002393,2]
[365516520,1749733845757,-259.67528716,0.0002393,2]
[365516521,1749733845766,-973.80289166,0.00023934,10]
[365516522,1749733845776,-500.0,0.0002395,2]
[365516523,1749733845785,-192.8418287,0.00023973,2]
[365516524,1749733845795,-500.0,0.00023973,2]
[365516525,1749733845805,-503.43987139,0.00023973,2]
[365516526,1749733845814,-500.0,0.00023973,2]
[365516527,1749733845824,-268.122783,0.00023973,2]
[365516528,1749733845834,-500.0,0.00023973,2]
[365516529,1749733845844,-500.0,0.00023973,2]
[365516530,1749733845854,-501.18837978,0.00023973,2]
[365516531,1749733845863,-501.02088772,0.00023973,2]
[365516532,1749733845873,-500.0,0.00023973,2]
[365516533,1749733845882,-500.0,0.00023973,2]
[365516534,1749733845892,-500.0,0.00023973,2]
[365516535,1749733845903,-500.0,0.00023973,2]
[365516536,1749733845912,-500.0,0.00023973,2]
[365516537,1749733845922,-500.0,0.00023973,2]
[365516538,1749733845932,-500.0,0.00023973,2]
[365516539,1749733845941,-500.0,0.00023973,2]
[365516540,1749733845951,-579.42347057,0.00023973,2]
[365516541,1749733845961,-600.0,0.00023973,2]
[365516542,1749733845970,-500.0,0.00023973,2]
[365516543,1749733845980,-500.0,0.00023973,2]
[365516544,1749733845990,-500.0,0.00023973,2]
[365516545,1749733845999,-500.0,0.00023973,2]
[365516546,1749733846008,-500.0,0.00023973,2]
[365516547,1749733846018,-207.0,0.0002399,2]
[365516548,1749733846027,-208.0,0.0002399,2]
[365516549,1749733846036,-200.89142611,0.00023999,2]
[365516550,1749733846046,-61.86742258,0.00023999,8]
[365516551,1749733846056,-1533.0,0.00023999,10]
[365516552,1749733846065,-500.0,0.00023999,2]
[365516553,1749733846075,-500.0,0.00023999,2]
[365516554,1749733846084,-500.0,0.00023999,2]
[365516555,1749733846093,-500.0,0.00023999,2]
[365516556,1749733846103,-500.0,0.00023999,2]
[365516557,1749733846112,-500.0,0.00023999,2]
[365516558,1749733846122,-500.0,0.00023999,2]
[365516559,1749733846135,-500.0,0.00023999,2]
[365516560,1749733846145,-266.0,0.00023999,2]
[365516561,1749733846157,-151.0,0.00023999,7]
[365516562,1749733846167,-374.75877497,0.00024,2]
[365516563,1749733846176,-1493.04804059,0.00024,2]
[365516564,1749733846186,-202.28223306,0.00024,2]
[365516565,1749733846195,-151.12781111,0.00024,2]
[365516566,1749733846205,-1000.0,0.00024,24]
[365516567,1749733846215,-9484.07922974,0.00024,60]
[365516568,1749733846303,-21398.0,0.00024,60]
[365516569,1749733846315,-1276.09563568,0.00024,60]
[365516570,1749733846327,-4070.21299076,0.00024,60]
[365516571,1749733846339,-319.15618644,0.00024,60]
[365516572,1749733846376,-241347.27809022,0.00024,60]
[365516573,1749733846497,-424.26423502,0.00023677,2]
[365516574,1749733846506,-5099.55730427,0.00024,60]
[365516584,1749734013413,157.93562872,0.00013699,2]
[365516610,1749734432270,161.71262,0.00013699,2]
[365516615,1749734543666,2548.41472375,0.00024943,120]
[365516645,1749734764697,-9836.0,0.00019461,2]
[365516660,1749734867073,53001.47020108,0.00024945,120]
[365516674,1749734913974,39822.2835945,0.00024945,120]
[365516748,1749735032602,-164.0,0.00019461,2]
[365516750,1749735032612,-153.30079669,0.00020063,2]
[365516752,1749735032622,-300.0,0.00020163,2]
[365516754,1749735032632,-500.0,0.00020164,2]
[365516756,1749735032642,-177.17469684,0.00020374,2]
[365516758,1749735032652,-274.13939564,0.00020377,2]
[365516760,1749735032662,-300.0,0.00020399,2]
[365516762,1749735032671,-300.0,0.00020399,2]
[365516764,1749735032681,-300.0,0.00020399,2]
[365516766,1749735032694,-8649.4475909,0.000204,5]
[365516768,1749735032710,-156.89515289,0.00020452,2]
[365516770,1749735032720,-16000.0,0.00020452,2]
[365516772,1749735032731,-11882.05682549,0.00020452,2]
[365516775,1749735032742,-175.29521816,0.00020455,2]
[365516777,1749735032751,-215.755,0.00020464,2]
[365516779,1749735032761,-866.05,0.00020474,2]
[365516781,1749735032770,-253.69206714,0.00020475,2]
[365516783,1749735032780,-500.0,0.00020475,2]
[365516785,1749735032789,-341.50042635,0.00020475,2]
[365516787,1749735032799,-500.0,0.00020475,2]
[365516789,1749735032808,-500.0,0.00020475,2]
[365516791,1749735032817,-500.0,0.00020475,2]
[365516793,1749735032827,-169.83408303,0.00020475,2]
[365516795,1749735032837,-386.13751135,0.00020475,2]
[365516797,1749735032848,-500.0,0.00020475,2]
[365516799,1749735032858,-500.0,0.00020475,2]
[365516801,1749735032867,-500.0,0.00020475,2]
[365516803,1749735032877,-500.0,0.00020475,2]
[365516805,1749735032886,-500.0,0.00020475,2]
[365516807,1749735032895,-500.0,0.00020475,2]
[365516809,1749735032905,-500.0,0.00020475,2]
[365516811,1749735032915,-500.0,0.00020475,2]
[365516813,1749735032924,-500.0,0.00020475,2]
[365516815,1749735032933,-392.96217809,0.00020475,2]
[365516817,1749735032943,-500.0,0.00020475,2]
[365516818,1749735032953,-500.0,0.00020475,2]
[365516819,1749735032962,-500.0,0.00020475,2]
[365516820,1749735032971,-405.2740993,0.00020475,2]
[365516821,1749735032981,-24900.0,0.00020477,2]
[365516822,1749735032990,-161.71262,0.00020548,2]
[365516823,1749735032999,-267.21668791,0.00020599,2]
[365516824,1749735033008,-184.979528,0.0002069,2]
[365516825,1749735033017,-658.08549639,0.000209,4]
[365516826,1749735033026,-274.13939564,0.0002096,2]
[365516827,1749735033035,-3913.50555712,0.00020995,2]
[365516828,1749735033044,-7629.71819466,0.00021,2]
[365516829,1749735033057,-4510.34508413,0.00021,2]
[365516830,1749735033068,-825.69706914,0.00021,2]
[365516890,1749735038584,-3034.23965207,0.00021,2]
[365516892,1749735038595,-658.08549629,0.00021038,4]
[365516894,1749735038607,-835.15920933,0.00021079,2]
[365516896,1749735038617,-160.0,0.00021079,2]
[365516898,1749735038626,-229.7508257,0.00021079,2]
[365516900,1749735038636,-424.26423502,0.00021079,2]
[365516902,1749735038646,-844.79171733,0.00021079,2]
[365516904,1749735038656,-165.8684,0.00021095,4]
[365516906,1749735038666,-460.0,0.00021095,4]
[365516908,1749735038675,-460.0,0.00021095,4]
[365516910,1749735038685,-460.0,0.00021095,4]
[365516912,1749735038696,-460.0,0.00021095,2]
[365516914,1749735038705,-460.0,0.00021095,4]
[365516916,1749735038715,-460.0,0.00021095,4]
[365516918,1749735038725,-865.71,0.00021095,4]
[365516920,1749735038734,-460.0,0.00021095,4]
[365516922,1749735038744,-1729.02,0.00021095,4]
[365516924,1749735038753,-151.0,0.00021095,4]
[365516926,1749735038763,-460.0,0.00021095,4]
[365516928,1749735038773,-852.72,0.00021095,4]
[365516930,1749735038783,-460.0,0.00021095,4]
[365516932,1749735038792,-1479.22,0.00021095,4]
[365516934,1749735038802,-460.0,0.00021095,4]
[365516936,1749735038812,-460.0,0.00021095,4]
[365516938,1749735038821,-460.0,0.00021095,4]
[365516940,1749735038831,-446.12927608,0.00021095,4]
[365516942,1749735038840,-490.26,0.00021095,4]
[365516944,1749735038851,-1026.02,0.00021095,4]
[365516946,1749735038860,-460.0,0.00021095,4]
[365516947,1749735038870,-460.0,0.00021095,4]
[365516950,1749735038879,-771.75,0.00021095,4]
[365516952,1749735038890,-460.0,0.00021095,4]
[365516954,1749735038900,-460.0,0.00021095,4]
[365516956,1749735038909,-460.0,0.00021095,4]
[365516958,1749735038920,-460.0,0.00021095,4]
[365516960,1749735038929,-553.05750101,0.00021095,4]
[365516962,1749735038939,-460.0,0.00021095,4]
[365516964,1749735038949,-460.0,0.00021095,4]
[365516966,1749735038959,-460.0,0.00021095,4]
[365516968,1749735038969,-460.0,0.00021095,4]
[365516970,1749735038978,-460.0,0.00021095,4]
[365516972,1749735038988,-460.0,0.00021095,4]
[365516974,1749735038998,-850.83,0.00021095,4]
[365516976,1749735039007,-460.0,0.00021095,4]
[365516978,1749735039017,-460.0,0.00021095,4]
[365516980,1749735039027,-663.06,0.00021095,4]
[365516982,1749735039036,-460.0,0.00021095,4]
[365516984,1749735039046,-460.0,0.00021095,4]
[365516986,1749735039055,-350.0,0.00021095,2]
[365516988,1749735039064,-460.0,0.00021095,4]
[365516990,1749735039074,-644.15,0.00021095,4]
[365516992,1749735039083,-460.0,0.00021095,4]
[365516994,1749735039092,-327.08551543,0.00021095,4]
[365516996,1749735039104,-1920.24,0.00021095,4]
[365516998,1749735039114,-460.0,0.00021095,4]
[365517000,1749735039123,-460.0,0.00021095,4]
[365517002,1749735039132,-1481.06,0.00021095,4]
[365517004,1749735039142,-460.0,0.00021095,4]
[365517006,1749735039152,-949.04,0.00021095,4]
[365517008,1749735039161,-460.0,0.00021095,4]
[365517010,1749735039170,-722.88,0.00021095,4]
[365517012,1749735039179,-460.0,0.00021095,4]
[365517014,1749735039189,-460.0,0.00021095,4]
[365517016,1749735039198,-460.0,0.00021095,4]
[365517018,1749735039208,-460.0,0.00021095,4]
[365517020,1749735039218,-904.15,0.00021095,4]
[365517022,1749735039227,-658.08549629,0.00021176,4]
[365517024,1749735039237,-658.08549629,0.00021314,5]
[365517026,1749735039246,-999.71,0.00021359,3]
[365517028,1749735039256,-499.86,0.00021359,3]
[365517030,1749735039265,-249.93,0.00021359,3]
[365517032,1749735039275,-460.0,0.00021369,4]
[365517034,1749735039284,-460.0,0.00021369,4]
[365517036,1749735039295,-385.53277726,0.00021369,4]
[365517038,1749735039305,-460.0,0.00021369,2]
[365517040,1749735039316,-460.0,0.00021369,4]
[365517042,1749735039326,-460.0,0.00021369,4]
[365517044,1749735039335,-865.71,0.00021369,4]
[365517046,1749735039344,-460.0,0.00021369,4]
[365517048,1749735039355,-1729.02,0.00021369,4]
[365517050,1749735039364,-310.0,0.00021369,4]
[365517052,1749735039374,-852.72,0.00021369,4]
[365517067,1749735039496,-460.0,0.00021369,4]
[365517069,1749735039506,-1479.22,0.00021369,4]
[365517071,1749735039516,-460.0,0.00021369,4]
[365517073,1749735039531,-460.0,0.00021369,4]
[365517075,1749735039540,-460.0,0.00021369,4]
[365517077,1749735039550,-490.26,0.00021369,4]
[365517079,1749735039561,-1026.02,0.00021369,4]
[365517081,1749735039571,-460.0,0.00021369,4]
[365517083,1749735039580,-460.0,0.00021369,4]
[365517085,1749735039590,-771.75,0.00021369,4]
[365517087,1749735039601,-460.0,0.00021369,4]
[365517089,1749735039612,-460.0,0.00021369,4]
[365517090,1749735039622,-460.0,0.00021369,4]
[365517092,1749735039632,-460.0,0.00021369,4]
[365517095,1749735039643,-460.0,0.00021369,4]
[365517097,1749735039653,-330.0,0.00021369,4]
[365517099,1749735039662,-460.0,0.00021369,4]
[365517100,1749735039672,-460.0,0.00021369,4]
[365517103,1749735039681,-460.0,0.00021369,4]
[365517105,1749735039691,-460.0,0.00021369,4]
[365517106,1749735039701,-850.83,0.00021369,4]
[365517109,1749735039711,-460.0,0.00021369,4]
[365517111,1749735039721,-460.0,0.00021369,4]
[365517113,1749735039731,-663.06,0.00021369,4]
[365517115,1749735039740,-460.0,0.00021369,4]
[365517116,1749735039750,-460.0,0.00021369,4]
[365517118,1749735039759,-350.0,0.00021369,2]
[365517121,1749735039769,-306.28537315,0.00021369,4]
[365517123,1749735039779,-644.15,0.00021369,4]
[365517125,1749735039789,-460.0,0.00021369,4]
[365517127,1749735039798,-1920.24,0.00021369,4]
[365517128,1749735039808,-460.0,0.00021369,4]
[365517129,1749735039818,-460.0,0.00021369,4]
[365517130,1749735039828,-1481.06,0.00021369,4]
[365517131,1749735039838,-460.0,0.00021369,4]
[365517132,1749735039847,-949.04,0.00021369,4]
[365517133,1749735039858,-460.0,0.00021369,4]
[365517134,1749735039869,-722.88,0.00021369,4]
[365517135,1749735039879,-460.0,0.00021369,4]
[365517136,1749735039889,-460.0,0.00021369,4]
[365517137,1749735039899,-460.0,0.00021369,4]
[365517138,1749735039908,-460.0,0.00021369,4]
[365517139,1749735039918,-3913.50555711,0.0002143,2]
[365517140,1749735039928,-1732.1,0.00021449,2]
[365517141,1749735039937,-658.08549629,0.00021452,5]
[365517142,1749735039947,-274.13939564,0.00021543,2]
[365517143,1749735039957,-500.0,0.00021546,2]
[365517144,1749735039968,-500.0,0.00021546,2]
[365517145,1749735039978,-500.0,0.00021546,2]
[365517146,1749735039988,-243.94881655,0.00021546,2]
[365517147,1749735039997,-500.0,0.0002155,2]
[365517148,1749735040007,-507.97057501,0.0002155,2]
[365517149,1749735040016,-500.0,0.0002155,2]
[365517150,1749735040026,-500.0,0.0002155,2]
[365517151,1749735040035,-500.0,0.0002155,2]
[365517152,1749735040045,-500.0,0.0002155,2]
[365517153,1749735040054,-160.05074782,0.0002155,2]
[365517154,1749735040064,-658.08549629,0.0002159,5]
[365517155,1749735040073,-605.35,0.000216,2]
[365517156,1749735040082,-500.0,0.00021617,2]
[365517157,1749735040092,-500.0,0.00021617,2]
[365517158,1749735040102,-500.0,0.00021617,2]
[365517159,1749735040112,-500.0,0.00021617,2]
[365517160,1749735040122,-749.79,0.00021633,3]
[365517161,1749735040131,-460.0,0.00021643,4]
[365517162,1749735040140,-460.0,0.00021643,4]
[365517163,1749735040150,-460.0,0.00021643,2]
[365517164,1749735040160,-460.0,0.00021643,4]
[365517165,1749735040169,-460.0,0.00021643,4]
[365517166,1749735040179,-865.71,0.00021643,4]
[365517167,1749735040188,-460.0,0.00021643,4]
[365517168,1749735040198,-1729.02,0.00021643,4]
[365517169,1749735040207,-852.72,0.00021643,4]
[365517170,1749735040217,-460.0,0.00021643,4]
[365517171,1749735040226,-1479.22,0.00021643,4]
[365517172,1749735040235,-460.0,0.00021643,4]
[365517173,1749735040244,-400.0,0.00021643,4]
[365517174,1749735040254,-460.0,0.00021643,4]
[365517175,1749735040263,-490.26,0.00021643,4]
[365517176,1749735040273,-1026.02,0.00021643,4]
[365517177,1749735040282,-460.0,0.00021643,4]
[365517178,1749735040292,-400.0,0.00021643,4]
[365517179,1749735040301,-771.75,0.00021643,4]
[365517180,1749735040310,-460.0,0.00021643,4]
[365517181,1749735040319,-460.0,0.00021643,4]
[365517182,1749735040330,-460.0,0.00021643,4]
[365517183,1749735040340,-460.0,0.00021643,4]
[365517184,1749735040351,-460.0,0.00021643,4]
[365517185,1749735040360,-460.0,0.00021643,4]
[365517186,1749735040370,-460.0,0.00021643,4]
[365517187,1749735040379,-460.0,0.00021643,4]
[365517188,1749735040389,-400.0,0.00021643,4]
[365517189,1749735040399,-850.83,0.00021643,4]
[365517190,1749735040408,-460.0,0.00021643,4]
[365517191,1749735040418,-460.0,0.00021643,4]
[365517192,1749735040427,-663.06,0.00021643,4]
[365517193,1749735040435,-460.0,0.00021643,4]
[365517194,1749735040444,-460.0,0.00021643,4]
[365517195,1749735040453,-386.88378306,0.00021643,2]
[365517196,1749735040462,-644.15,0.00021643,4]
[365517197,1749735040472,-270.0,0.00021643,4]
[365517198,1749735040481,-1920.24,0.00021643,4]
[365517199,1749735040491,-460.0,0.00021643,4]
[365517200,1749735040500,-460.0,0.00021643,4]
[365517201,1749735040509,-1481.06,0.00021643,4]
[365517202,1749735040523,-460.0,0.00021643,4]
[365517203,1749735040534,-949.04,0.00021643,4]
[365517204,1749735040544,-460.0,0.00021643,4]
[365517205,1749735040553,-722.88,0.00021643,4]
[365517206,1749735040562,-460.0,0.00021643,4]
[365517207,1749735040573,-460.0,0.00021643,4]
[365517208,1749735040582,-460.0,0.00021643,4]
[365517209,1749735040593,-460.0,0.00021643,4]
[365517210,1749735040605,-500.0,0.00021685,2]
[365517211,1749735040614,-500.0,0.00021685,2]
[365517212,1749735040623,-500.0,0.00021685,2]
[365517213,1749735040633,-500.0,0.00021726,2]
[365517214,1749735040643,-500.79388403,0.00021726,2]
[365517215,1749735040652,-502.19689783,0.00021726,2]
[365517216,1749735040661,-658.08549629,0.00021728,5]
[365517217,1749735040671,-282.95270206,0.00021768,2]
[365517218,1749735040681,-504.25651522,0.00021768,2]
[365517219,1749735040690,-502.94341378,0.00021768,2]
[365517220,1749735040700,-160.0,0.00021835,3]
[365517221,1749735040710,-503.20180661,0.00021845,2]
[365517222,1749735040719,-500.0,0.00021845,2]
[365517223,1749735040727,-500.0,0.00021845,2]
[365517224,1749735040736,-3913.50555711,0.00021864,2]
[365517225,1749735040746,-658.08549629,0.00021866,6]
[365517226,1749735040756,-5000.0,0.000219,7]
[365517227,1749735040765,-500.0,0.00021906,2]
[365517228,1749735040774,-500.0,0.00021906,2]
[365517229,1749735040783,-500.0,0.00021906,2]
[365517230,1749735040792,-188.3840388,0.00021906,2]
[365517231,1749735040802,-500.0,0.00021906,2]
[365517232,1749735040812,-500.0,0.00021906,2]
[365517233,1749735040822,-500.0,0.00021906,2]
[365517234,1749735040831,-500.0,0.00021906,2]
[365517235,1749735040840,-500.0,0.00021906,2]
[365517236,1749735040852,-500.0,0.00021906,2]
[365517237,1749735040862,-500.0,0.00021906,2]
[365517238,1749735040871,-500.0,0.00021906,2]
[365517239,1749735040881,-500.0,0.00021906,2]
[365517240,1749735040890,-171.01265451,0.00021906,2]
[365517241,1749735040900,-500.0,0.00021906,2]
[365517242,1749735040909,-500.0,0.00021906,2]
[365517243,1749735040919,-500.0,0.00021906,2]
[365517244,1749735040928,-500.0,0.00021906,2]
[365517245,1749735040938,-550.0,0.00021906,2]
[365517246,1749735040948,-500.0,0.00021906,2]
[365517247,1749735040957,-243.99,0.00021917,4]
[365517248,1749735040967,-460.0,0.00021917,4]
[365517249,1749735040977,-460.0,0.00021917,2]
[365517250,1749735040986,-460.0,0.00021917,4]
[365517251,1749735040996,-460.0,0.00021917,4]
[365517252,1749735041005,-865.71,0.00021917,4]
[365517253,1749735041014,-380.0,0.00021917,4]
[365517254,1749735041024,-1729.02,0.00021917,4]
[365517255,1749735041033,-852.72,0.00021917,4]
[365517257,1749735041043,-380.0,0.00021917,4]
[365517259,1749735041053,-1479.22,0.00021917,4]
[365517261,1749735041062,-380.0,0.00021917,4]
[365517263,1749735041071,-460.0,0.00021917,4]
[365517265,1749735041081,-490.26,0.00021917,4]
[365517267,1749735041091,-1026.02,0.00021917,4]
[365517269,1749735041101,-460.0,0.00021917,4]
[365517270,1749735041110,-771.75,0.00021917,4]
[365517271,1749735041118,-295.86,0.00021917,4]
[365517272,1749735041127,-460.0,0.00021917,4]
[365517273,1749735041137,-460.0,0.00021917,4]
[365517274,1749735041146,-380.0,0.00021917,4]
[365517275,1749735041156,-380.0,0.00021917,4]
[365517276,1749735041165,-380.0,0.00021917,4]
[365517277,1749735041174,-460.0,0.00021917,4]
[365517278,1749735041184,-443.09013383,0.00021917,4]
[365517279,1749735041193,-850.83,0.00021917,4]
[365517280,1749735041203,-460.0,0.00021917,4]
[365517281,1749735041212,-460.0,0.00021917,4]
[365517282,1749735041222,-663.06,0.00021917,4]
[365517283,1749735041231,-250.0,0.00021917,4]
[365517284,1749735041240,-460.0,0.00021917,4]
[365517285,1749735041250,-644.15,0.00021917,4]
[365517286,1749735041259,-1920.24,0.00021917,4]
[365517287,1749735041268,-460.0,0.00021917,4]
[365517288,1749735041277,-380.0,0.00021917,4]
[365517289,1749735041287,-1481.06,0.00021917,4]
[365517290,1749735041296,-380.0,0.00021917,4]
[365517291,1749735041306,-949.04,0.00021917,4]
[365517292,1749735041315,-380.0,0.00021917,4]
[365517294,1749735041325,-722.88,0.00021917,4]
[365517295,1749735041335,-460.0,0.00021917,4]
[365517296,1749735041345,-460.0,0.00021917,4]
[365517297,1749735041356,-573.48,0.00021917,4]
[365517298,1749735041365,-460.0,0.00021917,4]
[365517299,1749735041375,-207.4,0.00021922,2]
[365517300,1749735041385,-5000.0,0.00021922,2]
[365517301,1749735041394,-420.0,0.00021952,2]
[365517302,1749735041404,-500.0,0.00021973,2]
[365517303,1749735041413,-503.80696151,0.00021973,2]
[365517304,1749735041423,-500.0,0.00021973,2]
[365517305,1749735041432,-500.0,0.00021973,2]
[365517306,1749735041442,-500.0,0.00021973,2]
[365517307,1749735041451,-500.0,0.00021973,2]
[365517308,1749735041460,-500.0,0.00021973,2]
[365517309,1749735041470,-164419.48,0.00022,7]
[365517310,1749735041480,-658.08549629,0.00022003,6]
[365517311,1749735041490,-218.21942738,0.00022094,2]
[365517312,1749735041500,-500.0,0.00022098,2]
[365517313,1749735041510,-517.08068501,0.00022098,2]
[365517314,1749735041522,-1000.0,0.00022098,2]
[365517315,1749735041532,-500.0,0.00022098,2]
[365517316,1749735041540,-658.08549629,0.00022141,6]
[365517317,1749735041549,-1000.0,0.00022165,2]
[365517318,1749735041559,-1000.0,0.00022165,2]
[365517319,1749735041568,-1000.0,0.00022165,2]
[365517320,1749735041578,-500.0,0.00022165,2]
[365517321,1749735041587,-411.86,0.00022191,4]
[365517322,1749735041598,-460.0,0.00022191,2]
[365517323,1749735041612,-423.17,0.00022191,4]
[365517324,1749735041622,-496.39,0.00022191,4]
[365517325,1749735041632,-865.71,0.00022191,4]
[365517326,1749735041641,-1729.02,0.00022191,4]
[365517327,1749735041652,-852.72,0.00022191,4]
[365517328,1749735041662,-1479.22,0.00022191,4]
[365517329,1749735041671,-460.0,0.00022191,4]
[365517330,1749735041681,-490.26,0.00022191,4]
[365517331,1749735041691,-1026.02,0.00022191,4]
[365517332,1749735041701,-460.0,0.00022191,4]
[365517333,1749735041711,-771.75,0.00022191,4]
[365517334,1749735041720,-460.0,0.00022191,4]
[365517335,1749735041730,-460.0,0.00022191,4]
[365517336,1749735041739,-457.2,0.00022191,4]
[365517337,1749735041749,-850.83,0.00022191,4]
[365517338,1749735041758,-460.0,0.00022191,4]
[365517339,1749735041769,-460.0,0.00022191,4]
[365517340,1749735041778,-663.06,0.00022191,4]
[365517341,1749735041787,-460.0,0.00022191,4]
[365517342,1749735041797,-644.15,0.00022191,4]
[365517343,1749735041807,-1920.24,0.00022191,4]
[365517344,1749735041816,-205.79,0.00022191,4]